[Event "GER-ch Women Open 2019"]
[Site "Bodenmais"]
[Date "2019.08.02"]
[Round "7.3"]
[White "Ries, Jutta"]
[Black "Pribylova, Ruzena"]
[Result "1-0"]
[ECO "A03"]
[WhiteElo "1983"]
[BlackElo "1867"]
[Annotator "NA"]
[PlyCount "181"]
[EventDate "2019.07.27"]
[EventType "swiss"]
[EventCountry "GER"]
[SourceTitle "playchess.com"]
[Source "ChessBase"]
[SourceQuality "1"]
[TimeControl "40/5400+30:900+30"]

1. f4 {[%emt 0:00:00]} d5 {[%emt 0:00:00]} 2. Nf3 {[%emt 0:00:00]} Nf6 {[%emt 0:00:23]} 3. e3 {[%emt 0:00:37]} e6 {[%emt 0:00:17]} 4. b3 {[%emt 0:00:30]} Be7 {[%emt 0:00:19]} 5. Bb2 {[%emt 0:00:15]} O-O {[%emt 0:00:15]} 6. Bd3 {[%emt 0:02:12]} c5 {[%emt 0:02:25]} 7. O-O {[%emt 0:01:11]} Nc6 {[%emt 0:00:18]} 8. a3 {[%emt 0:01:06]} b6 {[%emt 0:00:49]} 9. Qe1 {[%emt 0:12:42]} Ne4 {[%emt 0:06:28]} 10. Nc3 {[%emt 0:16:21]} f5 {[%emt 0:09:12]} 11. Bb5 {[%emt 0:25:29]} Bb7 {[%emt 0:02:19]} 12. d3 {[%emt 0:07:18]} Nd6 {[%emt 0:07:23]} 13. Bxc6 {[%emt 0:00:07]} Bxc6 {[%emt 0:00:09]} 14. Ne2 {[%emt 0:06:34]} Rc8 {[%emt 0:08:40]} 15. Qg3 {[%emt 0:03:56]} Bf6 {[%emt 0:00:33]} 16. Bxf6 {[%emt 0:00:03]} Qxf6 {[%emt 0:10:30]} 17. Ne5 {[%emt 0:00:03]} Rfe8 {[%emt 0:00:57]} 18. c3 {[%emt 0:14:22]} Bb7 {[%emt 0:03:27]} 19. Rad1 {[%emt 0:00:28]} Rc7 {[%emt 0:04:35]} 20. c4 {[%emt 0:02:29]} a6 {[%emt 0:05:57]} 21. Rb1 {[%emt 0:01:28]} b5 {[%emt 0:01:06]} 22. Rfc1 {[%emt 0:00:01]} Rec8 {[%emt 0:06:07]} 23. h4 {[%emt 0:00:38]} Nf7 {[%emt 0:02:05]} 24. Nxf7 {[%emt 0:01:23]} Kxf7 {[%emt 0:00:25]} 25. Qg5 {[%emt 0:00:27]} Qxg5 {[%emt 0:01:15]} 26. hxg5 {[%emt 0:00:01]} Kg6 {[%emt 0:00:58]} 27. Kf2 {[%emt 0:00:05]} h6 {[%emt 0:00:58]} 28. gxh6 {[%emt 0:00:20]} gxh6 {[%emt 0:06:53]} 29. cxd5 {[%emt 0:02:16]} Bxd5 {[%emt 0:02:22]} 30. Nc3 {[%emt 0:00:39]} Bb7 {[%emt 0:03:18]} 31. Ne2 {[%emt 0:01:10]} Kf6 {[%emt 0:01:21]} 32. Rh1 {[%emt 0:00:15]} Rh7 {[%emt 0:01:31]} 33. Rbc1 {[%emt 0:00:11]} h5 {[%emt 0:00:40]} 34. Rh2 {[%emt 0:00:37]} Bd5 {[%emt 0:02:22]} 35. Rb1 {[%emt 0:01:01]} e5 {[%emt 0:03:38]} 36. fxe5+ {[%emt 0:00:18]} Kxe5 {[%emt 0:00:02]} 37. Nf4 {[%emt 0:00:16]} Bf7 {[%emt 0:02:00]} 38. Ke2 {[%emt 0:00:59]} Be8 {[%emt 0:06:05]} 39. Kf2 {[%emt 0:00:58]} Rcc7 {[%emt 0:00:16]} 40. Rh4 {[%emt 0:00:21]} Bf7 {[%emt 0:00:16]} 41. Nh3 {[%emt 0:01:18]} Rg7 {[%emt 0:00:00]} 42. Ng1 {[%emt 0:01:15]} Rg4 {[%emt 0:01:37]} 43. Nf3+ {[%emt 0:00:50]} Kf6 {[%emt 0:00:22]} 44. Rhh1 {[%emt 0:03:42]} Rg8 {[%emt 0:02:56]} 45. Rhc1 {[%emt 0:04:10]} Rgc8 {[%emt 0:00:41]} 46. Rb2 {[%emt 0:01:33]} Bd5 {[%emt 0:05:03]} 47. Rh1 {[%emt 0:03:28]} Bf7 {[%emt 0:00:37]} 48. Nd2 {[%emt 0:00:27]} Kg5 {[%emt 0:01:31]} 49. Nf3+ {[%emt 0:00:27]} Kf6 {[%emt 0:00:07]} 50. Rh4 {[%emt 0:00:31]} Rd8 {[%emt 0:01:17]} 51. Ne1 {[%emt 0:01:52]} Kg5 {[%emt 0:00:26]} 52. Rf4 {[%emt 0:00:21]} Bd5 {[%emt 0:01:59]} 53. Ke2 {[%emt 0:01:06]} h4 {[%emt 0:01:53]} 54. Nf3+ {[%emt 0:00:01]} Bxf3+ {[%emt 0:00:22]} 55. Rxf3 {[%emt 0:00:01]} Rcd7 {[%emt 0:00:20]} 56. Rd2 {[%emt 0:00:39]} Rh8 {[%emt 0:02:06]} 57. Kd1 {[%emt 0:00:23]} Kf6 {[%emt 0:01:59]} 58. Kc2 {[%emt 0:00:21]} Ke5 {[%emt 0:00:22]} 59. Rdf2 {[%emt 0:00:02]} Rh5 {[%emt 0:00:29]} 60. Rf4 {[%emt 0:00:32]} Rd6 {[%emt 0:00:18]} 61. Kc3 {[%emt 0:00:42]} h3 62. gxh3 {[%emt 0:00:11]} Rxh3 {[%emt 0:01:07]} 63. Rxf5+ {[%emt 0:00:03]} Ke6 {[%emt 0:00:07]} 64. Rf6+ {[%emt 0:00:29]} Ke7 {[%emt 0:00:01]} 65. Rxd6 {[%emt 0:00:37]} Kxd6 {[%emt 0:00:01]} 66. Rf6+ {[%emt 0:00:07]} Kc7 {[%emt 0:00:07]} 67. e4 {[%emt 0:01:26]} Kb7 {[%emt 0:00:09]} 68. a4 {[%emt 0:00:58]} Rh1 {[%emt 0:00:11]} 69. axb5 {[%emt 0:00:52]} axb5 {[%emt 0:00:02]} 70. b4 {[%emt 0:01:15]} cxb4+ {[%emt 0:01:18]} 71. Kxb4 {[%emt 0:00:02]} Rb1+ {[%emt 0:00:10]} 72. Kc3 {[%emt 0:00:47]} b4+ {[%emt 0:01:24]} 73. Kc2 {[%emt 0:00:02]} Ra1 {[%emt 0:00:21]} 74. Rd6 {[%emt 0:00:43]} Ra3 {[%emt 0:00:22]} 75. e5 {[%emt 0:00:38]} Kc7 {[%emt 0:00:13]} 76. Rd4 {[%emt 0:00:31]} Kc6 {[%emt 0:01:16]} 77. Rxb4 {[%emt 0:01:21]} Kc5 {[%emt 0:00:22]} 78. Rb3 {[%emt 0:00:30]} Ra1 {[%emt 0:00:36]} 79. Kc3 {[%emt 0:00:31]} Rc1+ {[%emt 0:00:21]} 80. Kd2 {[%emt 0:00:03]} Ra1 {[%emt 0:00:14]} 81. Ke3 {[%emt 0:00:51]} Re1+ {[%emt 0:00:02]} 82. Kf4 {[%emt 0:00:28]} Kd4 {[%emt 0:01:08]} 83. Rb5 {[%emt 0:00:39]} Rf1+ {[%emt 0:00:24]} 84. Kg5 {[%emt 0:00:07]} Kxd3 {[%emt 0:00:32]} 85. e6 {[%emt 0:00:20]} Kd4 {[%emt 0:00:28]} 86. Kg6 {[%emt 0:00:49]} Rg1+ {[%emt 0:00:52]} 87. Kf7 {[%emt 0:00:27]} Rf1+ {[%emt 0:00:54]} 88. Ke8 {[%emt 0:00:09]} Ra1 {[%emt 0:00:22]} 89. e7 {[%emt 0:00:37]} Ra8+ {[%emt 0:00:21]} 90. Kf7 {[%emt 0:00:17]} Ra7 {[%emt 0:00:10]} 91. Kf8 {[%emt 0:00:03] Kd5} 1-0

[Event "GER-ch Women Open 2019"]
[Site "Bodenmais"]
[Date "2019.08.02"]
[Round "7.4"]
[White "Weinmann, Helene"]
[Black "Just, Anita"]
[Result "0-1"]
[ECO "A40"]
[WhiteElo "1520"]
[BlackElo "1875"]
[Annotator "NA"]
[PlyCount "52"]
[EventDate "2019.07.27"]
[EventType "swiss"]
[EventCountry "GER"]
[SourceTitle "playchess.com"]
[Source "ChessBase"]
[SourceQuality "1"]
[TimeControl "40/5400+30:900+30"]

1. d4 {[%emt 0:00:00]} e6 {[%emt 0:00:00]} 2. Nf3 {[%emt 0:00:03]} f5 {[%emt 0:00:00]} 3. Bf4 {[%emt 0:00:41]} Nf6 {[%emt 0:00:20]} 4. h3 {[%emt 0:00:56]} b6 {[%emt 0:04:41]} 5. c3 {[%emt 0:01:32]} Bb7 6. Nbd2 {[%emt 0:00:18]} Be7 {[%emt 0:00:40]} 7. e3 {[%emt 0:00:25]} O-O {[%emt 0:00:56]} 8. Be2 {[%emt 0:00:41]} Ne4 {[%emt 0:03:59]} 9. O-O {[%emt 0:00:46]} Nxd2 {[%emt 0:11:35]} 10. Nxd2 {[%emt 0:01:14]} d5 {[%emt 0:00:31]} 11. Bf3 {[%emt 0:01:04]} Nd7 {[%emt 0:02:11]} 12. c4 {[%emt 0:00:30]} g5 {[%emt 0:06:56]} 13. Bh2 {[%emt 0:00:42]} c6 {[%emt 0:00:25]} 14. cxd5 {[%emt 0:00:50]} cxd5 {[%emt 0:00:22]} 15. Rc1 {[%emt 0:00:44]} Rc8 {[%emt 0:04:14]} 16. Qe2 {[%emt 0:00:44]} Nf6 {[%emt 0:04:59]} 17. Nb3 {[%emt 0:05:06]} Qd7 {[%emt 0:04:52]} 18. Rxc8 {[%emt 0:11:14]} Rxc8 {[%emt 0:00:07]} 19. Nc1 {[%emt 0:00:33]} Qa4 {[%emt 0:08:31]} 20. Re1 {[%emt 0:01:16]} Ba6 {[%emt 0:07:58]} 21. Qd1 {[%emt 0:00:45]} Qxd1 {[%emt 0:01:22]} 22. Rxd1 {[%emt 0:00:15]} Rc2 {[%emt 0:01:10]} 23. Be5 {[%emt 0:01:01]} Rxb2 {[%emt 0:02:46]} 24. a4 {[%emt 0:01:54]} Ne4 {[%emt 0:02:43]} 25. Bxe4 {[%emt 0:00:20]} fxe4 {[%emt 0:00:18]} 26. f3 {[%emt 0:01:28]} Rb1 {[%emt 0:02:47]} 0-1

[Event "GER-ch Women Open 2019"]
[Site "Bodenmais"]
[Date "2019.08.02"]
[Round "7.5"]
[White "Peglau, Dora"]
[Black "Peglau, Lorena"]
[Result "1-0"]
[ECO "A40"]
[WhiteElo "1300"]
[BlackElo "1108"]
[Annotator "NA"]
[PlyCount "65"]
[EventDate "2019.07.27"]
[EventType "swiss"]
[EventCountry "GER"]
[SourceTitle "playchess.com"]
[Source "ChessBase"]
[SourceQuality "1"]
[TimeControl "40/5400+30:900+30"]

1. d4 {[%emt 0:00:00]} c6 {[%emt 0:00:11]} 2. c4 {[%emt 0:00:04]} d5 {[%emt 0:00:18]} 3. e3 {[%emt 0:00:43]} Bf5 {[%emt 0:00:43]} 4. Nc3 {[%emt 0:00:33]} Nd7 {[%emt 0:00:18]} 5. cxd5 {[%emt 0:01:06]} cxd5 {[%emt 0:00:27]} 6. Nxd5 {[%emt 0:00:23]} e6 {[%emt 0:00:16]} 7. Nc3 {[%emt 0:00:13]} Bb4 {[%emt 0:00:13]} 8. Bd2 {[%emt 0:00:28]} Qc7 {[%emt 0:00:27]} 9. Rc1 {[%emt 0:02:55]} Ngf6 {[%emt 0:00:24]} 10. Nb5 {[%emt 0:01:14]} Bxd2+ {[%emt 0:00:58]} 11. Qxd2 {[%emt 0:00:09]} Qb6 {[%emt 0:00:19]} 12. Nc7+ {[%emt 0:00:21]} Ke7 {[%emt 0:00:43]} 13. Nxa8 {[%emt 0:00:31]} Rxa8 {[%emt 0:00:29]} 14. Nf3 {[%emt 0:00:13]} Kf8 {[%emt 0:00:17]} 15. Be2 {[%emt 0:00:34]} Kg8 {[%emt 0:00:41]} 16. O-O {[%emt 0:00:28]} Ne4 {[%emt 0:01:30]} 17. Qd1 {[%emt 0:01:15]} Qxb2 {[%emt 0:01:00]} 18. Rc2 {[%emt 0:01:49]} Qb6 {[%emt 0:00:28]} 19. Qc1 {[%emt 0:00:52]} h6 {[%emt 0:00:42]} 20. Rc8+ {[%emt 0:00:20]} Rxc8 {[%emt 0:00:15]} 21. Qxc8+ {[%emt 0:00:07]} Kh7 {[%emt 0:00:16]} 22. Qxd7 {[%emt 0:00:15]} f6 {[%emt 0:00:33]} 23. Nh4 {[%emt 0:00:58]} Qb2 {[%emt 0:00:37]} 24. Nxf5 {[%emt 0:00:13]} exf5 {[%emt 0:00:17]} 25. Qxf5+ {[%emt 0:00:17]} Kg8 {[%emt 0:00:17]} 26. Bc4+ {[%emt 0:00:08]} Kh8 {[%emt 0:00:26]} 27. Qc8+ {[%emt 0:00:43]} Kh7 {[%emt 0:00:13]} 28. Bg8+ {[%emt 0:00:19]} Kg6 {[%emt 0:00:17]} 29. Qe8+ {[%emt 0:01:01]} Kf5 {[%emt 0:00:14]} 30. Bh7+ {[%emt 0:00:13]} Kg5 {[%emt 0:00:33]} 31. Qg6+ {[%emt 0:00:18]} Kh4 {[%emt 0:00:25]} 32. g3+ {[%emt 0:00:23]} Kh3 {[%emt 0:00:17]} 33. Qh5# {[%emt 0:00:22] Kg4} 1-0

[Event "GER-ch Women Open 2019"]
[Site "Bodenmais"]
[Date "2019.08.02"]
[Round "7.6"]
[White "Navarro Ortega-Villaizan, Alba"]
[Black "Wolff, Beate"]
[Result "1/2-1/2"]
[ECO "B18"]
[WhiteElo "700"]
[BlackElo "1238"]
[Annotator "NA"]
[PlyCount "86"]
[EventDate "2019.07.27"]
[EventType "swiss"]
[EventCountry "GER"]
[SourceTitle "playchess.com"]
[Source "ChessBase"]
[SourceQuality "1"]
[TimeControl "40/5400+30:900+30"]

1. e4 {[%emt 0:00:00]} c6 {[%emt 0:00:00]} 2. d4 {[%emt 0:00:00]} d5 {[%emt 0:00:00]} 3. Nc3 {[%emt 0:00:32]} dxe4 {[%emt 0:00:07]} 4. Nxe4 {[%emt 0:00:15]} Bf5 {[%emt 0:00:14]} 5. Qf3 {[%emt 0:02:28]} Bxe4 {[%emt 0:04:25]} 6. Qxe4 {[%emt 0:00:43]} Nf6 {[%emt 0:00:19]} 7. Qd3 {[%emt 0:02:55]} e6 {[%emt 0:06:36]} 8. Be3 {[%emt 0:01:22]} Be7 {[%emt 0:02:52]} 9. Qb3 {[%emt 0:03:06]} b5 {[%emt 0:08:42]} 10. c4 {[%emt 0:01:57]} a6 {[%emt 0:04:19]} 11. Bd3 {[%emt 0:03:02]} O-O {[%emt 0:05:46]} 12. Nf3 {[%emt 0:02:53]} Nbd7 {[%emt 0:06:11]} 13. O-O {[%emt 0:02:21]} Qc7 {[%emt 0:05:22]} 14. c5 {[%emt 0:02:44]} Rfe8 {[%emt 0:14:00]} 15. a4 {[%emt 0:08:32]} Nd5 {[%emt 0:05:21]} 16. axb5 {[%emt 0:05:34]} cxb5 {[%emt 0:02:10]} 17. Bg5 {[%emt 0:04:17]} Bf6 {[%emt 0:04:07]} 18. Bxf6 {[%emt 0:01:18]} N7xf6 {[%emt 0:00:37]} 19. Ne5 {[%emt 0:00:59]} Nf4 {[%emt 0:08:01]} 20. g3 {[%emt 0:05:16]} Nxd3 {[%emt 0:01:19]} 21. Nxd3 {[%emt 0:04:42]} Nd5 {[%emt 0:03:03]} 22. Nb4 {[%emt 0:06:13]} Nxb4 {[%emt 0:02:10]} 23. Qxb4 {[%emt 0:05:49]} Qc6 {[%emt 0:01:10]} 24. Rfd1 {[%emt 0:01:42]} Red8 {[%emt 0:02:42]} 25. Rd3 {[%emt 0:02:44]} Rd5 {[%emt 0:02:21]} 26. Rad1 {[%emt 0:02:07]} a5 {[%emt 0:01:03]} 27. Qd2 {[%emt 0:03:32]} b4 {[%emt 0:02:04]} 28. Qf4 {[%emt 0:05:47]} Rf5 {[%emt 0:01:22]} 29. Qg4 {[%emt 0:00:34]} Qd5 {[%emt 0:02:16]} 30. Rc1 {[%emt 0:01:08]} Rc8 {[%emt 0:02:23]} 31. Qh4 {[%emt 0:00:59]} Rh5 {[%emt 0:01:25]} 32. Qe7 {[%emt 0:00:26]} Rf5 {[%emt 0:02:19]} 33. Qa7 {[%emt 0:02:39]} h6 {[%emt 0:00:25]} 34. Qa6 {[%emt 0:00:28]} Qe4 {[%emt 0:00:58]} 35. Qxc8+ {[%emt 0:01:17]} Kh7 {[%emt 0:00:07]} 36. c6 {[%emt 0:00:22]} Qxd3 {[%emt 0:00:25]} 37. Qd7 {[%emt 0:00:26]} Qe2 {[%emt 0:00:12]} 38. Rf1 {[%emt 0:00:52]} Qxb2 {[%emt 0:01:04]} 39. c7 {[%emt 0:00:14]} Qe2 {[%emt 0:00:46]} 40. c8=Q b3 {[%emt 0:00:16]} 41. Rb1 {[%emt 0:16:15]} Qxf2+ {[%emt 0:15:06]} 42. Kh1 {[%emt 0:01:08]} Qf3+ {[%emt 0:00:09]} 43. Kg1 {[%emt 0:00:35]} Qf2+ {[%emt 0:00:05]} 1/2-1/2

[Event "GER-ch Women Open 2019"]
[Site "Bodenmais"]
[Date "2019.08.02"]
[Round "7.7"]
[White "Navarro Ortega-Villaizan, Lucia"]
[Black "Peglau, Adelheid"]
[Result "0-1"]
[ECO "B13"]
[WhiteElo "1113"]
[BlackElo "1187"]
[Annotator "NA"]
[PlyCount "102"]
[EventDate "2019.07.27"]
[EventType "swiss"]
[EventCountry "GER"]
[SourceTitle "playchess.com"]
[Source "ChessBase"]
[SourceQuality "1"]
[TimeControl "40/5400+30:900+30"]

1. e4 {[%emt 0:00:00]} c6 {[%emt 0:00:00]} 2. d4 {[%emt 0:00:00]} d5 {[%emt 0:00:00]} 3. exd5 {[%emt 0:00:00]} cxd5 {[%emt 0:00:00]} 4. Nf3 {[%emt 0:00:00]} Nf6 5. Bd3 {[%emt 0:01:00]} Bg4 {[%emt 0:01:22]} 6. h3 {[%emt 0:01:06]} Bxf3 {[%emt 0:01:19]} 7. Qxf3 {[%emt 0:00:21]} e6 {[%emt 0:01:42]} 8. Bf4 {[%emt 0:00:39]} Qb6 {[%emt 0:02:57]} 9. O-O {[%emt 0:13:56]} Qxb2 {[%emt 0:02:59]} 10. Nd2 {[%emt 0:01:42]} Qxd4 {[%emt 0:07:16]} 11. Be3 Qe5 {[%emt 0:08:47]} 12. Rfe1 {[%emt 0:06:43]} Qc7 {[%emt 0:04:31]} 13. Bf4 {[%emt 0:01:14]} Bd6 {[%emt 0:00:53]} 14. Bxd6 {[%emt 0:03:07]} Qxd6 {[%emt 0:00:09]} 15. c4 {[%emt 0:01:49]} Nbd7 {[%emt 0:04:58]} 16. cxd5 {[%emt 0:00:31]} Nxd5 {[%emt 0:06:00]} 17. Nc4 {[%emt 0:04:16]} Qc6 {[%emt 0:03:46]} 18. Rac1 {[%emt 0:05:31]} O-O {[%emt 0:20:55]} 19. Ne5 {[%emt 0:22:16]} Qd6 {[%emt 0:13:38]} 20. Qe4 {[%emt 0:03:11]} N7f6 {[%emt 0:02:16]} 21. Qf3 Rac8 {[%emt 0:00:02]} 22. Rxc8 {[%emt 0:01:03]} Rxc8 {[%emt 0:02:45]} 23. g4 {[%emt 0:12:50]} h6 {[%emt 0:04:51]} 24. Qg3 {[%emt 0:08:11]} Rc3 {[%emt 0:03:42]} 25. Qf3 {[%emt 0:01:47]} Nb4 {[%emt 0:01:19]} 26. Bh7+ {[%emt 0:00:12]} Kxh7 {[%emt 0:00:47]} 27. Qxc3 {[%emt 0:00:56]} Nbd5 {[%emt 0:01:02]} 28. Qd3+ {[%emt 0:01:21]} Kg8 {[%emt 0:03:16]} 29. Qc2 {[%emt 0:01:07]} Nb6 {[%emt 0:00:26]} 30. Rd1 {[%emt 0:01:01]} Nfd5 {[%emt 0:00:08]} 31. Nc4 {[%emt 0:00:09]} Nxc4 {[%emt 0:00:58]} 32. Qxc4 {[%emt 0:00:32]} Qa3 {[%emt 0:00:11]} 33. Qc8+ {[%emt 0:00:21]} Kh7 34. Qxb7 Qxh3 {[%emt 0:00:47]} 35. Rd4 {[%emt 0:01:51]} Kg6 {[%emt 0:00:44]} 36. Qc6 {[%emt 0:00:31]} f5 {[%emt 0:00:54]} 37. Rxd5 {[%emt 0:00:48]} Qxg4+ {[%emt 0:00:13]} 38. Kf1 {[%emt 0:00:48]} Qh3+ {[%emt 0:00:19]} 39. Ke1 {[%emt 0:00:21]} Qh1+ {[%emt 0:00:17]} 40. Ke2 {[%emt 0:00:46]} Qxd5 {[%emt 0:00:08]} 41. Qe8+ {[%emt 0:15:13]} Kh7 {[%emt 0:16:05]} 42. Qa4 {[%emt 0:00:22]} Qe4+ {[%emt 0:01:05]} 43. Qxe4 {[%emt 0:00:20]} fxe4 {[%emt 0:00:01]} 44. Ke3 {[%emt 0:00:14]} Kg6 {[%emt 0:00:04]} 45. Kxe4 {[%emt 0:00:15]} Kg5 {[%emt 0:00:04]} 46. Ke5 {[%emt 0:00:05]} h5 {[%emt 0:00:08]} 47. Ke4 {[%emt 0:00:09]} Kg4 {[%emt 0:00:05]} 48. f3+ {[%emt 0:00:45]} Kg3 {[%emt 0:00:06]} 49. f4 {[%emt 0:00:09]} h4 50. Ke5 {[%emt 0:00:34]} h3 {[%emt 0:00:19]} 51. Kxe6 {[%emt 0:00:06]} Kxf4 {[%emt 0:00:14]} 0-1

[Event "GER-ch Women Open 2019"]
[Site "Bodenmais"]
[Date "2019.08.03"]
[Round "8.1"]
[White "Von Herman, Brigitte"]
[Black "Pribylova, Ruzena"]
[Result "1-0"]
[ECO "B22"]
[WhiteElo "2062"]
[BlackElo "1867"]
[Annotator "NA"]
[PlyCount "41"]
[EventDate "2019.07.27"]
[EventType "swiss"]
[EventCountry "GER"]
[SourceTitle "playchess.com"]
[Source "ChessBase"]
[SourceQuality "1"]
[TimeControl "40/5400+30:900+30"]

1. e4 {[%emt 0:00:00]} c5 {[%emt 0:00:00]} 2. c3 {[%emt 0:00:00]} Nc6 {[%emt 0:00:49]} 3. d4 {[%emt 0:00:03]} cxd4 {[%emt 0:01:23]} 4. cxd4 {[%emt 0:00:14]} d5 {[%emt 0:01:26]} 5. exd5 {[%emt 0:00:26]} Qxd5 {[%emt 0:00:27]} 6. Nf3 {[%emt 0:00:10]} Bg4 {[%emt 0:08:12]} 7. Nc3 {[%emt 0:00:08]} Bxf3 {[%emt 0:13:18]} 8. gxf3 {[%emt 0:00:07]} Qa5 {[%emt 0:05:01]} 9. d5 {[%emt 0:00:54]} Ne5 {[%emt 0:01:46]} 10. Bb5+ {[%emt 0:08:39]} Nd7 {[%emt 0:00:21]} 11. Bxd7+ {[%emt 0:01:45]} Kxd7 {[%emt 0:00:14]} 12. Qb3 {[%emt 0:02:47]} Qa6 {[%emt 0:03:31]} 13. Bf4 {[%emt 0:05:23]} Nf6 {[%emt 0:00:53]} 14. O-O-O {[%emt 0:00:44]} g6 {[%emt 0:04:24]} 15. Ne4 {[%emt 0:24:48]} Rc8+ {[%emt 0:01:58]} 16. Kb1 {[%emt 0:00:09]} Bg7 {[%emt 0:00:36]} 17. Rc1 {[%emt 0:00:54]} b6 {[%emt 0:00:58]} 18. Ng5 {[%emt 0:03:28]} Nh5 {[%emt 0:04:57]} 19. Be3 {[%emt 0:13:19]} f5 {[%emt 0:09:22]} 20. d6 {[%emt 0:01:58]} Rxc1+ {[%emt 0:15:49]} 21. Rxc1 1-0

[Event "GER-ch Women Open 2019"]
[Site "Bodenmais"]
[Date "2019.08.03"]
[Round "8.2"]
[White "Ries, Jutta"]
[Black "Peglau, Dora"]
[Result "1-0"]
[ECO "A01"]
[WhiteElo "1983"]
[BlackElo "1300"]
[Annotator "NA"]
[PlyCount "89"]
[EventDate "2019.07.27"]
[EventType "swiss"]
[EventCountry "GER"]
[SourceTitle "playchess.com"]
[Source "ChessBase"]
[SourceQuality "1"]
[TimeControl "40/5400+30:900+30"]

1. b3 {[%emt 0:00:00]} Nf6 {[%emt 0:00:00]} 2. Bb2 {[%emt 0:00:00]} g6 {[%emt 0:00:22]} 3. e3 {[%emt 0:00:02]} Bg7 {[%emt 0:00:07]} 4. c4 {[%emt 0:02:02]} c5 {[%emt 0:00:54]} 5. Nc3 {[%emt 0:00:33]} Nc6 {[%emt 0:00:33]} 6. Ne4 {[%emt 0:04:05]} d6 {[%emt 0:01:55]} 7. Nxf6+ {[%emt 0:00:06]} Bxf6 {[%emt 0:00:58]} 8. Bxf6 {[%emt 0:00:30]} exf6 {[%emt 0:00:01]} 9. Nf3 {[%emt 0:04:41]} O-O {[%emt 0:05:19]} 10. Be2 {[%emt 0:02:28]} Bf5 {[%emt 0:05:00]} 11. O-O {[%emt 0:01:26]} Re8 {[%emt 0:09:06]} 12. d4 {[%emt 0:04:59]} Qe7 {[%emt 0:10:11]} 13. Qd2 {[%emt 0:09:12]} Rad8 {[%emt 0:07:19]} 14. d5 {[%emt 0:21:46]} Ne5 {[%emt 0:00:41]} 15. Rfc1 {[%emt 0:17:36]} Kg7 {[%emt 0:06:13]} 16. a3 {[%emt 0:10:40]} Qc7 {[%emt 0:06:37]} 17. Qc3 {[%emt 0:02:57]} b6 {[%emt 0:04:00]} 18. Ne1 {[%emt 0:01:58]} Qe7 {[%emt 0:08:22]} 19. h3 {[%emt 0:01:17]} Rb8 {[%emt 0:10:38]} 20. Ra2 {[%emt 0:00:53]} Rb7 {[%emt 0:01:26]} 21. g4 {[%emt 0:05:53]} Bc8 {[%emt 0:00:28]} 22. Ng2 {[%emt 0:00:08]} Kg8 {[%emt 0:08:04]} 23. f4 {[%emt 0:03:44]} Nd7 {[%emt 0:00:21]} 24. Bf3 {[%emt 0:00:01]} Rb8 {[%emt 0:05:39]} 25. a4 {[%emt 0:01:43]} a5 {[%emt 0:01:01]} 26. Re1 {[%emt 0:00:20]} Bb7 {[%emt 0:01:22]} 27. Rae2 {[%emt 0:00:08]} Qf8 {[%emt 0:01:47]} 28. e4 {[%emt 0:01:47]} Re7 {[%emt 0:01:06]} 29. Ne3 {[%emt 0:00:04]} Qh6 {[%emt 0:00:47]} 30. Qd2 {[%emt 0:01:46]} Qxf4 {[%emt 0:00:52]} 31. Nf5 {[%emt 0:00:50]} Qxf3 {[%emt 0:01:37]} 32. Nxe7+ {[%emt 0:00:02]} Kf8 {[%emt 0:00:12]} 33. Nc6 {[%emt 0:00:06]} Bxc6 {[%emt 0:01:17]} 34. dxc6 {[%emt 0:00:02]} Ne5 {[%emt 0:01:34]} 35. Qh6+ {[%emt 0:01:25]} Kg8 {[%emt 0:00:11]} 36. Re3 {[%emt 0:00:01]} Nxg4 {[%emt 0:01:14]} 37. hxg4 {[%emt 0:00:29]} Qxg4+ {[%emt 0:00:18]} 38. Kf2 {[%emt 0:00:02]} Re8 {[%emt 0:00:52]} 39. c7 {[%emt 0:01:39]} Rc8 {[%emt 0:00:31]} 40. Rh1 {[%emt 0:00:57]} Rxc7 {[%emt 0:00:21]} 41. Qxh7+ {[%emt 0:15:23]} Kf8 {[%emt 0:15:06]} 42. Qh4 {[%emt 0:01:25]} Qe6 {[%emt 0:00:33]} 43. Rd1 {[%emt 0:00:29]} Qe5 {[%emt 0:01:02]} 44. Qg3 {[%emt 0:00:42]} Qb2+ {[%emt 0:00:00]} 45. Re2 {[%emt 0:00:00]} 1-0

[Event "GER-ch Women Open 2019"]
[Site "Bodenmais"]
[Date "2019.08.03"]
[Round "8.3"]
[White "Wolff, Beate"]
[Black "Sewald, Kathrin"]
[Result "0-1"]
[ECO "A20"]
[WhiteElo "1238"]
[BlackElo "2016"]
[Annotator "NA"]
[PlyCount "58"]
[EventDate "2019.07.27"]
[EventType "swiss"]
[EventCountry "GER"]
[SourceTitle "playchess.com"]
[Source "ChessBase"]
[SourceQuality "1"]
[TimeControl "40/5400+30:900+30"]

1. c4 {[%emt 0:00:00]} e5 {[%emt 0:00:00]} 2. g3 {[%emt 0:00:00]} d6 {[%emt 0:00:00]} 3. Bg2 {[%emt 0:00:01]} Nf6 {[%emt 0:00:18]} 4. Nc3 {[%emt 0:01:19]} g6 {[%emt 0:00:48]} 5. Nf3 {[%emt 0:01:02]} Bg7 {[%emt 0:00:24]} 6. O-O {[%emt 0:00:39]} O-O {[%emt 0:00:21]} 7. d3 {[%emt 0:00:53]} c6 {[%emt 0:00:28]} 8. Rb1 {[%emt 0:02:04]} Re8 {[%emt 0:02:40]} 9. Ng5 {[%emt 0:02:39]} Nh5 {[%emt 0:06:57]} 10. b4 {[%emt 0:06:32]} h6 {[%emt 0:01:34]} 11. Nf3 {[%emt 0:01:27]} f5 {[%emt 0:00:16]} 12. e4 {[%emt 0:01:46]} f4 {[%emt 0:00:55]} 13. Ne2 {[%emt 0:06:41]} g5 {[%emt 0:01:13]} 14. h4 {[%emt 0:03:06]} g4 {[%emt 0:00:35]} 15. Nh2 {[%emt 0:02:48]} f3 {[%emt 0:00:14]} 16. Nxf3 {[%emt 0:00:11]} gxf3 {[%emt 0:00:05]} 17. Bxf3 {[%emt 0:00:13]} Nf6 {[%emt 0:00:19]} 18. Bg2 {[%emt 0:00:38]} a5 {[%emt 0:03:24]} 19. b5 {[%emt 0:01:06]} Nbd7 {[%emt 0:03:27]} 20. a4 {[%emt 0:02:16]} Nc5 {[%emt 0:01:44]} 21. f4 {[%emt 0:04:21]} Bg4 {[%emt 0:01:36]} 22. Qc2 {[%emt 0:00:23]} Nxa4 {[%emt 0:01:04]} 23. bxc6 {[%emt 0:03:42]} bxc6 {[%emt 0:00:15]} 24. f5 {[%emt 0:01:14]} Nc5 {[%emt 0:00:16]} 25. Nc3 {[%emt 0:02:27]} a4 {[%emt 0:00:48]} 26. Ba3 {[%emt 0:00:40]} Nb3 {[%emt 0:01:06]} 27. Na2 {[%emt 0:02:52]} Nh5 {[%emt 0:03:15]} 28. Kh2 {[%emt 0:01:34]} Nd4 {[%emt 0:00:22]} 29. Nb4 {[%emt 0:03:24]} Nxc2 0-1